fUST/lending_fUST_20240622
["ID","MTS","AMOUNT","RATE_DAILY","PERIOD"]
[330146506,1719050672171,154.80649189,0.00010959,2]
[330146507,1719050725964,203.91866015,0.00013283,2]
[330146508,1719050735389,154.80649189,0.00013283,2]
[330146509,1719050888048,5276.08774157,0.00013848,2]
[330146510,1719050893990,-624.2543555,0.00014134,2]
[330146511,1719050894132,-504.01056766,0.00014134,2]
[330146512,1719050894167,-120.24378784,0.00014135,2]
[330146513,1719050918949,-179.75621216,0.00014135,2]
[330146514,1719050918983,-469.46831756,0.00014136,2]
[330146515,1719050919030,-547.06323262,0.00014136,2]
[330146517,1719050943933,-300.0,0.00014135,2]
[330146518,1719050943965,-74.61894829,0.00014135,2]
[330146519,1719050944006,-225.38105171,0.00014135,2]
[330146520,1719050944036,-447.76923326,0.00014136,2]
[330146522,1719050968960,-212.54377847,0.00014134,2]
[330146523,1719050968995,-481.56189117,0.00014136,2]
[330146524,1719050969036,-459.77289978,0.00014136,2]
[330146526,1719050993999,-717.18324102,0.00014136,2]
[330146527,1719050994058,-573.27064938,0.00014136,2]
[330146777,1719051061137,1197.73985538,0.00014047,2]
[330146778,1719051167125,261.55719,0.00014081,2]
[330146779,1719051266610,1048.02237351,0.00014036,2]
[330146780,1719051279581,1189.48617041,0.00014036,2]
[330146781,1719051449222,990.33586488,9.999e-05,2]
[330146782,1719051472143,917.01957683,0.00014033,2]
[330146783,1719051509348,1312.68071553,9.999e-05,2]
[330146784,1719051511953,1120.11748768,9.999e-05,2]
[330146785,1719051531299,5276.08774157,0.00013758,2]
[330146786,1719051543378,499.75,0.00026,60]
[330146787,1719051563833,1312.68071553,0.0001212,2]
[330146788,1719051576420,12247.492443,0.00013361,2]
[330146789,1719051581518,154.80649189,0.0001212,2]
[330146790,1719051607198,5032.0,0.000225,30]
[330146791,1719051679663,802.3921297,0.00014027,2]
[330146792,1719051686790,951.58893632,0.00014027,2]
[330146793,1719051738251,154.95929032,9.999e-05,2]
[330146794,1719051772306,569.30342497,9.999e-05,2]
[330146795,1719051786210,755.35460127,0.0001212,2]
[330146796,1719051807670,195.42618471,0.0001212,2]
[330146797,1719051807809,379.53561665,0.0001212,2]
[330146798,1719051817623,524.19958358,0.0001212,2]
[330146799,1719051884940,702.09311347,0.00014021,2]
[330146800,1719051999716,157.22564319,0.00014003,2]
[330146801,1719052030838,5276.08774157,0.00013861,2]
[330146802,1719052095262,780.99349816,0.00014012,2]
[330146803,1719052098719,761.27114908,0.00014012,2]
[330146804,1719052122032,-620.24773445,0.0001411,2]
[330146827,1719052232924,-300.0,0.00014106,2]
[330146829,1719052232933,-300.0,0.00014106,2]
[330146831,1719052232943,-42169.50223688,0.00014106,2]
[330146833,1719052232953,-154.80649189,0.00014106,2]
[330146835,1719052232962,-4415.0130013,0.00014107,2]
[330146865,1719052241172,-16928.66680409,0.00014107,2]
[330146919,1719052255630,507.94,0.00010959,2]
[330146920,1719052300844,683.36931089,0.00014006,2]
[330146922,1719052318246,207.6633816,9.999e-05,2]
[330146923,1719052326751,16455.0345433,0.00013699,2]
[330146924,1719052357243,207.6633816,0.00013283,2]
[330146925,1719052412754,289.53649376,9.999e-05,2]
[330146926,1719052458096,1007.269461,0.00013216,2]
[330146929,1719052515635,676.5150356,0.00014034,2]
[330146932,1719052541777,597.94814702,0.00014029,2]
[330146938,1719052606531,267.9527671,9.999e-05,7]
[330146940,1719052647231,4689.21379075,0.00014029,2]
[330146942,1719052657058,267.9527671,0.0001212,7]
[330146943,1719052662236,4689.21379075,9.999e-05,2]
[330146945,1719052694776,155.67984992,9.999e-05,2]
[330146946,1719052705751,4689.21379075,0.0001212,2]
[330146947,1719052707044,267.9527671,0.0001212,7]
[330146948,1719052738381,723.48959224,9.999e-05,2]
[330146949,1719052777082,386.78595755,0.0001212,7]
[330146950,1719052780747,4689.21379075,0.0001212,2]
[330146951,1719052804710,883.65255289,0.00013757,2]
[330146952,1719052851738,500.0,0.00014,2]
[330146953,1719052952801,1312.68071553,9.999e-05,2]
[330146954,1719052983904,316.27968054,9.999e-05,2]
[330146955,1719052988930,1312.68071553,0.0001212,2]
[330146956,1719053015046,206.12526657,9.999e-05,2]
[330146957,1719053020427,164.78171356,0.0001212,2]
[330146958,1719053160255,4689.21379075,0.0001212,2]
[330146959,1719053265271,273.89949615,0.0001212,2]
[330146960,1719053307311,292.92115938,9.999e-05,2]
[330146961,1719053343282,-457.3330099,0.00014104,2]
[330146962,1719053343315,-171.50852469,0.00014105,2]
[330146963,1719053343351,-128.49147531,0.00014105,2]
[330146964,1719053343383,-300.0,0.00014105,2]
[330146965,1719053343414,-200.35005928,0.00014106,2]
[330146966,1719053343454,-197.57727058,0.00014106,2]
[330146967,1719053368253,-300.0,0.00014105,2]
[330146968,1719053368304,-357.94674138,0.00014106,2]
[330146969,1719053368357,-572.57817924,0.00014106,2]
[330146970,1719053391774,157.55618309,9.999e-05,2]
[330146971,1719053393321,-545.06881384,0.00014106,2]
[330146972,1719053393375,-682.55723979,0.00014106,2]
[330147392,1719053658639,157.2256432,0.00013994,2]
[330147393,1719054035368,4689.21379075,0.00013994,2]
[330147394,1719054046448,2097.8943503,0.00013994,2]
[330147395,1719054079614,209.80811183,9.999e-05,2]
[330147396,1719054130840,4689.21379075,9.999e-05,2]
[330147397,1719054168888,4689.21379075,0.0001212,2]
[330147398,1719054196702,205.38429961,9.999e-05,2]
[330147399,1719054244490,1312.68071553,9.999e-05,2]
[330147400,1719054275933,292.92115938,9.999e-05,2]
[330147401,1719054281595,285.14675342,0.0001212,2]
[330147402,1719054282413,4689.21379075,9.999e-05,2]
[330147403,1719054328054,943.61241127,0.0001212,2]
[330147404,1719054331354,292.92115938,0.0001212,2]
[330147405,1719054337501,1000.0,9.858e-05,2]
[330147406,1719054378906,2566.74173733,0.000141,2]
[330147407,1719054397822,300.0,0.00014013,2]
[330147408,1719054422508,1312.68071553,0.000141,2]
[330147409,1719054433481,164.78171356,9.999e-05,2]
[330147410,1719054451695,154.91211588,0.000141,2]
[330147411,1719054481987,164.78171356,0.0001212,2]
[330147412,1719054483961,154.80649189,0.000141,2]
[330147413,1719054502305,-596.37676898,0.00014102,2]
[330147414,1719054502354,-596.37676898,0.00014102,2]
[330147416,1719054517478,1000.0,9.934e-05,2]
[330147417,1719054517525,300.0,0.00014074,2]
[330147418,1719054527600,-620.23183974,0.00014101,2]
[330147419,1719054527655,-572.43924484,0.00014101,2]
[330147420,1719054552467,-644.08526143,0.00014101,2]
[330147421,1719054552518,-489.32061582,0.00014101,2]
[330147422,1719054577472,-666.75337898,0.00014101,2]
[330147423,1719054577526,-545.2745089,0.00014101,2]
[330147424,1719054577690,1000.0,9.736e-05,2]
[330147425,1719054577951,1000.0,9.857e-05,2]
[330147426,1719054602558,-427.04842285,0.00014101,2]
[330147427,1719054602590,-263.94551389,0.00014101,2]
[330147428,1719054602637,-427.11055203,0.00014101,2]
[330147437,1719054632881,-1123.643989,0.00014101,2]
[330147492,1719054639245,-163.47597032,0.00014101,2]
[330147495,1719054639255,-353.13921528,0.00014101,2]
[330147570,1719054641073,-4577.11245372,0.00014101,2]
[330147571,1719054641082,-300.0,0.00014102,2]
[330147573,1719054641092,-154.88350374,0.00014109,2]
[330147574,1719054641101,-636.64454732,0.00014129,2]
[330147575,1719054641111,-2029.6194543,0.0001413,2]
[330147576,1719054641212,-11434.22223886,0.0001413,2]
[330147577,1719054641221,-154.80649189,0.00014138,2]
[330147578,1719054641231,-151.591465,0.0001414,2]
[330147579,1719054641240,-152.019473,0.0001414,2]
[330147580,1719054641249,-154.80649189,0.00014145,2]
[330147581,1719054641259,-208.72042263,0.00014147,2]
[330147582,1719054641269,-154.910297,0.00014147,2]
[330147583,1719054641279,-268.415126,0.00014147,2]
[330147584,1719054641288,-3003.478118,0.00014147,2]
[330147585,1719054641297,-268.415126,0.00014147,2]
[330147586,1719054641307,-3003.478118,0.00014147,2]
[330147587,1719054641316,-151.0,0.00014147,2]
[330147588,1719054641325,-151.0,0.00014147,2]
[330147589,1719054641335,-151.0,0.00014147,2]
[330147590,1719054641344,-151.0,0.00014147,2]
[330147591,1719054641354,-590.64657696,0.00014278,2]
[330147592,1719054641363,-151.0,0.00014279,2]
[330147593,1719054641373,-151.0,0.00014279,2]
[330147594,1719054641384,-151.0,0.00014279,2]
[330147595,1719054641395,-151.0,0.00014279,2]
[330147596,1719054641406,-151.0,0.00014378,2]
[330147597,1719054641415,-268.415126,0.00014378,2]
[330147598,1719054641425,-268.415126,0.00014378,2]
[330147599,1719054641435,-3003.478118,0.00014378,2]
[330147600,1719054641444,-3003.478118,0.00014378,2]
[330147601,1719054641454,-268.415126,0.00014378,2]
[330147602,1719054641463,-268.415126,0.00014378,2]
[330147603,1719054641473,-3003.478118,0.00014378,2]
[330147604,1719054641492,-3003.478118,0.00014378,2]
[330147605,1719054641503,-151.0,0.00014378,2]
[330147606,1719054641512,-151.0,0.00014378,2]
[330147607,1719054641523,-151.0,0.00014378,2]
[330147608,1719054641533,-151.0,0.00014378,2]
[330147609,1719054641542,-151.0,0.00014378,2]
[330147610,1719054641552,-159.83671,0.00014378,2]
[330147611,1719054641565,-205.18391228,0.00014378,2]
[330147612,1719054641575,-151.0,0.00014378,2]
[330147613,1719054641585,-151.0,0.00014378,2]
[330147614,1719054641596,-10545.72017241,0.00014379,2]
[330147615,1719054641607,-188.747835,0.00014379,2]
[330147616,1719054641780,-268.415126,0.00014379,2]
[330147617,1719054641790,-268.415126,0.00014379,2]
[330147618,1719054641799,-268.415126,0.00014379,2]
[330147619,1719054641809,-3003.478118,0.00014379,2]
[330147620,1719054641818,-268.415126,0.00014379,2]
[330147621,1719054641827,-3003.478118,0.00014379,2]
[330147622,1719054641836,-268.415126,0.00014379,2]
[330147623,1719054641847,-3003.478118,0.00014379,2]
[330147624,1719054641857,-268.415126,0.00014379,2]
[330147625,1719054641867,-3003.478118,0.00014379,2]
[330147626,1719054641876,-3003.478118,0.00014379,2]
[330147627,1719054641889,-3003.478118,0.00014379,2]
[330147628,1719054641899,-151.0,0.00014379,2]
[330147629,1719054641909,-151.0,0.00014379,2]
[330147630,1719054641918,-151.0,0.00014379,2]
[330147631,1719054641928,-151.0,0.00014379,2]
[330147632,1719054641937,-237.704909,0.00014379,2]
[330147633,1719054641947,-151.0,0.00014379,2]
[330147634,1719054641957,-151.0,0.00014379,2]
[330147635,1719054641966,-151.0,0.00014379,2]
[330147636,1719054641976,-151.0,0.00014379,2]
[330147637,1719054641985,-151.0,0.0001438,2]
[330147638,1719054641995,-151.0,0.0001438,2]
[330147639,1719054642004,-268.415126,0.0001438,2]
[330147640,1719054642014,-3003.478118,0.0001438,2]
[330147641,1719054642024,-268.415126,0.0001438,2]
[330147642,1719054642034,-3003.478118,0.0001438,2]
[330147643,1719054642044,-151.0,0.0001438,2]
[330147644,1719054642053,-151.0,0.0001438,2]
[330147645,1719054642062,-151.0,0.0001438,2]
[330147646,1719054642071,-207.6633816,0.0001438,2]
[330147647,1719054642081,-151.0,0.00014381,2]
[330147648,1719054642090,-170.650679,0.00014381,2]
[330147649,1719054642103,-346.1,0.00014381,2]
[330147650,1719054642112,-346.1,0.00014381,2]
[330147651,1719054642121,-346.1,0.00014381,2]
[330147652,1719054642130,-346.1,0.00014381,2]
[330147653,1719054642139,-346.1,0.00014381,2]
[330147654,1719054642148,-346.1,0.00014381,2]
[330147655,1719054642158,-346.1,0.00014381,2]
[330147656,1719054642167,-346.1,0.00014381,2]
[330147657,1719054642177,-346.1,0.00014381,2]
[330147658,1719054642186,-346.1,0.00014381,2]
[330147659,1719054642195,-346.1,0.00014381,2]
[330147660,1719054642205,-346.1,0.00014381,2]
[330147661,1719054642214,-346.1,0.00014381,2]
[330147662,1719054642223,-346.1,0.00014381,2]
[330147663,1719054642233,-346.1,0.00014381,2]
[330147664,1719054642244,-346.1,0.00014381,2]
[330147665,1719054642254,-346.1,0.00014381,2]
[330147666,1719054642264,-346.1,0.00014381,2]
[330147667,1719054642274,-346.1,0.00014381,2]
[330147668,1719054642283,-346.1,0.00014381,2]
[330147669,1719054642292,-151.0,0.00014381,2]
[330147670,1719054642302,-166.995851,0.00014381,2]
[330147671,1719054642311,-251.717716,0.00014381,2]
[330147672,1719054642320,-151.0,0.00014381,2]
[330147673,1719054642329,-151.0,0.00014381,2]
[330147674,1719054642339,-151.0,0.00014381,2]
[330147675,1719054642350,-151.0,0.00014381,2]
[330147676,1719054642359,-151.0,0.00014381,2]
[330147677,1719054642368,-151.0,0.00014381,2]
[330147678,1719054642377,-191.011749,0.00014381,2]
[330147679,1719054642387,-268.415126,0.00014381,2]
[330147680,1719054642397,-268.415126,0.00014381,2]
[330147681,1719054642406,-268.415126,0.00014381,2]
[330147682,1719054642416,-3003.478118,0.00014381,2]
[330147683,1719054642426,-3003.478118,0.00014381,2]
[330147684,1719054642435,-195.26583563,0.00014381,2]
[330147714,1719054644220,-289.89676959,0.00014381,2]
[330147715,1719054644232,-1010.95391355,0.00014381,2]
[330147716,1719054644243,-1507.36159923,0.00014381,2]
[330147717,1719054644252,-268.415126,0.00014381,2]
[330147718,1719054644261,-268.415126,0.00014381,2]
[330147719,1719054644271,-268.415136,0.00014381,2]
[330147720,1719054644280,-1116.70653504,0.00014381,2]
[330147762,1719054697385,1000.0,9.906e-05,2]
[330147763,1719054697683,1000.0,9.793e-05,2]
[330147764,1719054697730,1000.0,9.848e-05,2]
[330147766,1719054757552,1000.0,9.977e-05,2]
[330147767,1719054757613,1000.0,9.94e-05,2]
[330147768,1719054757658,1000.0,9.871e-05,2]
[330147769,1719054757718,1000.0,9.727e-05,2]
[330147770,1719054757791,1000.0,9.814e-05,2]
[330147771,1719054817470,1000.0,9.789e-05,2]
[330147772,1719054817524,1000.0,9.906e-05,2]
[330147773,1719054817628,1000.0,9.9e-05,2]
[330147774,1719054817678,900.12993157,9.853e-05,2]
[330147775,1719054877950,1000.0,9.993e-05,2]
[330147776,1719054877996,1000.0,9.981e-05,2]
[330147777,1719054878038,1000.0,9.977e-05,2]
[330147778,1719054937412,1000.0,9.821e-05,2]
[330147779,1719054994796,179.10559787,0.00011904,2]
[330147780,1719055057667,1000.0,9.768e-05,2]
[330147781,1719055057706,300.0,0.00013855,2]
[330147782,1719055057745,1000.0,9.799e-05,2]
[330147783,1719055057793,300.0,0.00014021,2]
[330147786,1719055261405,300.0,0.000141,2]
[330147787,1719055289914,292.92115938,9.999e-05,2]
[330147789,1719055349422,292.92115938,0.0001212,2]
[330147790,1719055357493,1000.0,0.00014029,2]
[330147791,1719055391423,183.95823359,0.0001212,4]
[330147792,1719055399429,292.92115938,0.0001212,2]
[330147793,1719055435256,154.93061758,9.999e-05,2]
[330147796,1719055501090,300.0,0.000141,2]
[330147797,1719055507489,154.80649189,9.999e-05,2]
[330147798,1719055552984,158.84523495,0.0001212,2]
[330147802,1719055693951,-597.30743342,0.00014101,2]
[330147803,1719055694024,-423.83082126,0.00014101,2]
[330147805,1719055718738,-617.73019851,0.00014101,2]
[330147806,1719055718798,-417.88683151,0.00014101,2]
[330147807,1719055741178,300.0,0.000141,2]
[330147808,1719055743777,-638.44253911,0.00014101,2]
[330147809,1719055743837,-234.87825332,0.00014101,2]
[330147812,1719055748737,155.12948627,9.999e-05,2]
[330147815,1719055768747,-655.90895496,0.00014101,2]
[330147816,1719055768809,-225.5235256,0.00014101,2]
[330147818,1719055793905,-673.53760457,0.00014101,2]
[330147819,1719055795234,154.80649189,9.999e-05,2]
[330147820,1719055825228,154.80649189,9.999e-05,2]
[330147824,1719055832998,154.80649189,9.999e-05,2]
[330147909,1719055839098,-1622.11157322,0.00014101,2]
[330147910,1719055839108,-932.77189747,0.00014106,2]
[330147911,1719055839119,-932.77189747,0.00014106,2]
[330147912,1719055839129,-154.80649189,0.00014138,2]
[330147913,1719055839139,-457.3330099,0.0001438,2]
[330147914,1719055839149,-669.71805132,0.00014641,2]
[330147915,1719055839159,-322.97212777,0.00014641,2]
[330147916,1719055839169,-154.80649189,0.00014643,2]
[330147917,1719055839179,-17224.26027016,0.00014644,2]
[330147918,1719055839189,-154.80649189,0.00014691,2]
[330147919,1719055839199,-300.0,0.00014783,2]
[330147920,1719055839209,-1148.3909148,0.00015,2]
[330147921,1719055839220,-500.0,0.00015,2]
[330147922,1719055839230,-539.70101156,0.00015,2]
[330147923,1719055839241,-279.8597279,0.00015,2]
[330147924,1719055839251,-11115.63569694,0.00015002,2]
[330147925,1719055839261,-529.04691415,0.000151,2]
[330147926,1719055839271,-174.2730109,0.000152,2]
[330147927,1719055839282,-292.9716414,0.000152,2]
[330147928,1719055839292,-510.28517917,0.00015242,2]
[330147929,1719055839302,-292.9716414,0.00015342,2]
[330147930,1719055839312,-292.9716414,0.00015342,2]
[330147931,1719055839323,-292.9716414,0.00015342,2]
[330147932,1719055839333,-292.9716414,0.00015342,2]
[330147933,1719055839343,-292.9716414,0.00015342,2]
[330147934,1719055839353,-292.9716414,0.00015342,2]
[330147935,1719055839363,-292.9716414,0.00015342,2]
[330147936,1719055839373,-292.9716414,0.00015342,2]
[330147937,1719055839383,-292.9716414,0.00015342,2]
[330147938,1719055839393,-292.9716414,0.000154,2]
[330147939,1719055839404,-292.9716414,0.000154,2]
[330147940,1719055839414,-292.9716414,0.000154,2]
[330147941,1719055839556,-292.9716414,0.000154,2]
[330147942,1719055839566,-342.06616059,0.00015439,2]
[330147943,1719055839576,-154.94281045,0.00015439,2]
[330147944,1719055839586,-490.14773198,0.000156,2]
[330147945,1719055839596,-1312.68071553,0.0001567,2]
[330147946,1719055839606,-292.9716414,0.00015671,2]
[330147947,1719055839616,-292.9716414,0.00015671,2]
[330147948,1719055839625,-292.9716414,0.00015671,2]
[330147949,1719055839635,-292.9716414,0.00015671,2]
[330147950,1719055839645,-292.9716414,0.00015671,2]
[330147951,1719055839655,-292.9716414,0.00015671,2]
[330147952,1719055839666,-1312.68071553,0.00015722,2]
[330147953,1719055839676,-1978.17602524,0.00015722,2]
[330147954,1719055839686,-164.78171356,0.00015999,2]
[330147955,1719055839696,-2605.01342204,0.00016,2]
[330147956,1719055839706,-500.0,0.00016,2]
[330147957,1719055839715,-25104.78958736,0.00016,2]
[330147958,1719055839725,-151.0,0.00016,2]
[330147959,1719055839735,-151.0,0.00016,2]
[330147960,1719055839744,-151.0,0.00016,2]
[330147961,1719055839755,-151.0,0.00016,2]
[330147962,1719055839765,-196.374154,0.00016,2]
[330147963,1719055839775,-151.0,0.00016,2]
[330147964,1719055839785,-151.0,0.00016,2]
[330147965,1719055839796,-151.0,0.00016,2]
[330147966,1719055839806,-151.0,0.00016,2]
[330147967,1719055839816,-151.0,0.00016,2]
[330147968,1719055839827,-151.0,0.00016,2]
[330147969,1719055839836,-151.0,0.00016,2]
[330147970,1719055839846,-151.0,0.00016,2]
[330147971,1719055839857,-151.0,0.00016,2]
[330147972,1719055839872,-451.374403,0.00016,2]
[330147973,1719055839881,-451.374403,0.00016,2]
[330147974,1719055839891,-437.568828,0.00016,2]
[330147975,1719055839901,-437.568828,0.00016,2]
[330147976,1719055839912,-297.66742937,0.00016192,2]
[330147977,1719055839923,-510.28517913,0.00016201,2]
[330147978,1719055839934,-207.6633816,0.0001626,2]
[330147979,1719055839947,-208.72042263,0.0001626,2]
[330147980,1719055839957,-420.0,0.00016261,2]
[330147981,1719055839967,-154.80649189,0.00016452,2]
[330147982,1719055839977,-154.80649189,0.00016452,2]
[330147983,1719055839987,-177.688422,0.000165,2]
[330147984,1719055839996,-151.0,0.000165,2]
[330147985,1719055840006,-151.0,0.000165,2]
[330147986,1719055840016,-1101.97495994,0.00016523,2]
[330147987,1719055840026,-151.0,0.00016524,2]
[330147988,1719055840037,-151.0,0.00016524,2]
[330147989,1719055840047,-451.374403,0.00016524,2]
[330147990,1719055840057,-451.374403,0.00016524,2]
[330147991,1719055840067,-437.568828,0.00016524,2]
[330147992,1719055840077,-437.568828,0.00016524,2]
[330147993,1719055840088,-156.592304,0.00016525,2]
[330147994,1719055840099,-154.80649189,0.00016783,2]
[330147995,1719055840109,-287.01788425,0.00016783,2]
[330147996,1719055840120,-151.0,0.00016783,2]
[330147997,1719055840130,-235.099531,0.00016783,2]
[330147998,1719055840140,-151.0,0.00016783,2]
[330147999,1719055840150,-235.099531,0.00016783,2]
[330148000,1719055840160,-272.181028,0.00016783,2]
[330148001,1719055840171,-272.181028,0.00016783,2]
[330148002,1719055840182,-151.0,0.00016783,2]
[330148003,1719055840191,-151.0,0.00016783,2]
[330148004,1719055840201,-151.0,0.00016783,2]
[330148005,1719055840211,-151.0,0.00016817,2]
[330148006,1719055840220,-151.0,0.00016817,2]
[330148007,1719055840231,-151.0,0.00016817,2]
[330148008,1719055840241,-268.773167,0.00016817,2]
[330148009,1719055840251,-151.0,0.00016818,2]
[330148010,1719055840261,-151.0,0.00016818,2]
[330148011,1719055840271,-151.0,0.00016818,2]
[330148012,1719055840283,-151.0,0.00016818,2]
[330148013,1719055840292,-151.0,0.00016861,2]
[330148014,1719055840301,-1002.89680648,0.00016862,2]
[330148015,1719055840311,-151.0,0.00016862,2]
[330148016,1719055840321,-151.0,0.00016862,2]
[330148017,1719055840331,-151.0,0.00016862,2]
[330148018,1719055840341,-151.0,0.00016862,2]
[330148019,1719055840351,-500.0,0.00017,2]
[330148020,1719055840360,-157.405903,0.00017,2]
[330148021,1719055840370,-157.405903,0.00017,2]
[330148022,1719055840380,-151.0,0.00017,2]
[330148023,1719055840389,-158.955728,0.00017,2]
[330148024,1719055840399,-451.374403,0.00017,2]
[330148025,1719055840409,-451.374403,0.00017,2]
[330148026,1719055840418,-437.568828,0.00017,2]
[330148027,1719055840429,-437.568828,0.00017,2]
[330148028,1719055840439,-151.0,0.00017082,2]
[330148029,1719055840448,-151.0,0.00017082,2]
[330148030,1719055840458,-151.0,0.00017082,2]
[330148031,1719055840467,-151.0,0.00017082,2]
[330148032,1719055840477,-151.0,0.00017082,2]
[330148033,1719055840487,-151.0,0.00017082,2]
[330148034,1719055840497,-153.97303,0.00017082,2]
[330148035,1719055840507,-68.12435343,0.00017082,2]
[330148051,1719055841435,-166.97517757,0.00017082,2]
[330148052,1719055841449,-151.0,0.00017082,2]
[330148053,1719055841462,-235.099531,0.00017082,2]
[330148054,1719055841478,-272.181028,0.00017082,2]
[330148055,1719055841491,-272.181028,0.00017082,2]
[330148056,1719055841503,-151.0,0.00017082,2]
[330148058,1719055841516,-151.0,0.00017082,2]
[330148059,1719055841529,-151.0,0.00017082,2]
[330148060,1719055841543,-151.0,0.00017084,2]
[330148061,1719055841557,-151.0,0.00017084,2]
[330148062,1719055841571,-151.0,0.00017084,2]
[330148063,1719055841585,-151.0,0.00017084,2]
[330148064,1719055841599,-151.0,0.00017084,2]
[330148065,1719055841610,-151.0,0.00017084,2]
[330148066,1719055841621,-151.0,0.00017084,2]
[330148067,1719055841633,-151.0,0.00017084,2]
[330148068,1719055841646,-510.28517913,0.00017159,2]
[330148069,1719055841661,-529.04691415,0.00017188,2]
[330148070,1719055841672,-151.0,0.0001719,2]
[330148071,1719055841685,-151.0,0.0001719,2]
[330148072,1719055841698,-157.405903,0.0001719,2]
[330148073,1719055841709,-157.405903,0.0001719,2]
[330148074,1719055841720,-151.0,0.0001719,2]
[330148075,1719055841735,-151.0,0.0001719,2]
[330148076,1719055841748,-151.0,0.00017624,2]
[330148077,1719055841759,-151.0,0.00017624,2]
[330148078,1719055841771,-151.0,0.00017624,2]
[330148079,1719055841784,-151.0,0.00017624,2]
[330148081,1719055841796,-151.0,0.00017624,2]
[330148083,1719055841808,-451.374403,0.00017624,2]
[330148086,1719055841820,-451.374403,0.00017624,2]
[330148088,1719055841832,-437.568828,0.00017624,2]
[330148089,1719055841844,-437.568828,0.00017624,2]
[330148090,1719055841857,-639.14484032,0.00017705,2]
[330148091,1719055841872,-128.16287156,0.00017705,2]
[330148145,1719055844418,-52.65083644,0.00017705,2]
[330148146,1719055844429,-157.675428,0.00017705,2]
[330148147,1719055844442,-151.0,0.0001778,2]
[330148148,1719055844454,-235.099531,0.0001778,2]
[330148149,1719055844466,-158.451407,0.0001778,2]
[330148150,1719055844478,-235.099531,0.0001778,2]
[330148151,1719055844491,-272.181028,0.0001778,2]
[330148152,1719055844502,-272.181028,0.0001778,2]
[330148153,1719055844512,-151.0,0.0001778,2]
[330148154,1719055844521,-151.0,0.0001778,2]
[330148155,1719055844535,-278.20967,0.0001778,2]
[330148156,1719055844547,-151.0,0.00017785,2]
[330148157,1719055844557,-338.0,0.00017888,2]
[330148158,1719055844566,-1583.49961269,0.00017999,2]
[330148159,1719055844756,-8581.21282403,0.00018,2]
[330148180,1719055847320,-3212.14335811,0.00018,2]
[330148181,1719055847360,-437.3218685,0.00018,2]
[330148182,1719055858040,1633.18068597,0.0001212,2]
[330148183,1719055876411,162.38573467,0.0001212,2]
[330148184,1719055876640,4812.56037787,0.0001212,2]
[330148185,1719055876667,12411.69989229,0.0001212,2]
[330148186,1719055878729,1978.17602524,0.0001212,2]
[330148187,1719055880387,154.80649189,0.0001212,2]
[330148188,1719055881169,6301.26935204,0.0001212,2]
[330148189,1719055881494,198.9982705,0.0001212,2]
[330148190,1719055882344,535.70877775,0.0001212,2]
[330148191,1719055885189,154.80649189,0.0001212,2]
[330148192,1719055885386,208.72042263,0.0001212,2]
[330148193,1719055889089,1312.68071553,0.0001212,2]
[330148210,1719056099065,2037.0,0.00025999,60]
[330148220,1719056757516,988.11659015,9.999e-05,2]
[330148221,1719056758959,208.72042263,9.999e-05,2]
[330148222,1719056891131,154.80649189,9.999e-05,2]
[330148223,1719056896460,1434.68,0.00026,60]
[330148224,1719056921119,-584.72480967,0.00014097,2]
[330148225,1719056921189,-165.69016523,0.00014097,2]
[330148226,1719056946151,-300.0,0.00014096,2]
[330148227,1719056946182,-299.73310917,0.00014096,2]
[330148228,1719056946228,-0.26689083,0.00014096,2]